Cogmind - Beta 17.1 @@@ ROGUE MODE // 2026.09.02 @ 22:28:41 Player: Bsuter Result: Self-destructed Performance ------------- Evolutions (2) 1000 Regions Visited (5) 1000 Robots Destroyed (35) 175 Value Destroyed (793) 793 Prototype IDs (25) 500 Alien Tech Used (0) 0 Bonus (5800) 5800 TOTAL SCORE: 9268 Bonus ------- Prayed to X0-1V1 5000 Major X0-1V1 Interference 500 Aligned with FarCom 300 Cogmind --------- Core Integrity 422/550 Matter 391/700 Energy 125/125 System Corruption 4% Temperature Cool (0) Movement Walking (120) Location -8/Materials Parts ------- > --- POWER (1) -------- Light Ion Engine > --- PROPULSION (4) --- Aluminum Leg Aluminum Leg > --- UTILITY (4) ------ Lightpack 2.0 > --- WEAPON (2) ------- Beam Rifle Assault Rifle > --- INVENTORY (40) --- Small Storage Unit Improved Sensor Array Improved Terrain Scan Processor Target Analyzer Hardened Medium Armor Plating Hardened Medium Armor Plating Hardened Medium Armor Plating Hardened Medium Armor Plating Hardened Medium Armor Plating Hacking Suite Heavy EM Shotgun Beam Rifle Beam Rifle Spread Laser Light Assault Rifle Advanced Assault Cannon Mining Laser Peak State ------------ > --- POWER ------------ Ion Engine > --- PROPULSION ------- Aluminum Leg Aluminum Leg Aluminum Leg Aluminum Leg > --- UTILITY ---------- Lightpack 2.0 X0-1V1's Piety Tracker > --- WEAPON ----------- Beam Rifle Light Assault Rifle > --- INVENTORY -------- Light Ion Engine Small Storage Unit Improved Sensor Array Improved Terrain Scan Processor Target Analyzer Hardened Medium Armor Plating Hardened Medium Armor Plating Hardened Medium Armor Plating Hardened Medium Armor Plating Hardened Medium Armor Plating Hacking Suite Heavy EM Shotgun Beam Rifle Beam Rifle Spread Laser Assault Rifle Light Assault Rifle Mining Laser [Rating: 55] Favorites ----------- Power Ion Engine Engine Ion Engine Propulsion Aluminum Leg Leg Aluminum Leg Utility Small Storage Unit Device X0-1V1's Piety Tracker Storage Small Storage Unit Weapon Light Assault Rifle Energy Gun Beam Rifle Ballistic Gun Light Assault Rifle Special Weapon Mining Laser Build | -11 -10 -10 -10 -9 -8 ------- Run | Yrd Mat Min Exi Min Mat Slots Evolved 4 | . . . . . 4 Power . | . . . . . . Propulsion 2 | . . . . . 2 Utility 2 | . . . . . 2 Weapon . | . . . . . . Parts Attached 22 | . 11 4 1 . 6 Power 2 | . 1 . . . 1 Engine 2 | . 1 . . . 1 Core . | . . . . . . Reactor . | . . . . . . Propulsion 5 | . 2 . . . 3 Treads . | . . . . . . Leg 5 | . 2 . . . 3 Wheel . | . . . . . . Hover . | . . . . . . Flight . | . . . . . . Utility 4 | . 2 . 1 . 1 Device 2 | . 2 . . . . Storage 2 | . . . 1 . 1 Processor . | . . . . . . Hackware . | . . . . . . Protection . | . . . . . . Artifact . | . . . . . . Weapon 11 | . 6 4 . . 1 Energy Gun 1 | . . . . . 1 Energy Cannon . | . . . . . . Ballistic Gun 9 | . 5 4 . . . Ballistic Cannon . | . . . . . . Launcher . | . . . . . . Special Weapon 1 | . 1 . . . . Impact Weapon . | . . . . . . Slashing Weapon . | . . . . . . Piercing Weapon . | . . . . . . Special Melee Weapon . | . . . . . . Unidentified Prototypes 2 | . 1 . . . 1 Corrupted Parts 1 | . . . . . 1 System Corruption 4 | . . . . . 4 Parts Lost 6 | . . . . . 6 Power 1 | . . . . . 1 Propulsion 3 | . . . . . 3 Utility 1 | . . . . . 1 Weapon 1 | . . . . . 1 Highest Loss Streak 6 | . . . . . 6 To Critical Strikes . | . . . . . . Average Backups 8 | 6 7 8 5 7 14 Power 1 | 1 1 1 . 1 . Propulsion 2 | 4 3 4 2 2 . Utility 1 | . . . . 2 6 Weapon 2 | 1 2 3 1 2 5 Tool/Special . | . . . . . . Unused Backups 27 | . 12 . 1 . 14 Power 3 | . 3 . . . . Propulsion 7 | . 7 . . . . Utility 10 | . . . . . 10 Weapon 7 | . 2 . 1 . 4 Tool/Special . | . . . . . . Average Slot Usage (%) 94 | . 99 100 96 100 68 Engine 13 | . 14 14 14 14 9 Leg 27 | . 28 28 28 28 27 Device 12 | . 13 14 14 14 7 Storage 12 | . 14 14 10 14 8 Ballistic Gun 25 | . 27 28 28 28 10 Peak Build Rating 55 | 6 19 19 22 22 55 Average Rating 19 | 6 7 19 20 22 49 On Entrance 15 | 6 6 19 19 22 22 Avg Prop Armor Cover (%) . | . . . . . . Naked Turns . | . . . . . . Heaviest Build 18 | 11 14 14 18 18 15 Greatest Support 40 | 20 20 20 20 20 40 Greatest Overweight (x) . | . . . . . . Average Overweight (x) . | . . . . . . Largest Inventory Capacity 40 | 8 8 8 10 10 40 Average Capacity 12 | 8 8 8 8 10 39 Most Carried 19 | 6 8 8 9 9 19 Average Carried 8 | 6 7 8 6 9 14 Final Capacity 40 | 8 8 8 10 10 40 Final Carried 17 | 6 8 8 9 9 17 Class Distribution -------------------- 49% | Scavenger-Mutant 35% | Mutant 14% | Hauler-Mutant Dominant Class ---------------- Mutant | -10/Materials Scavenger-Mutant | -10/Mines Scavenger-Mutant | -10/Exiles Scavenger-Mutant | -9/Mines Hauler-Mutant | -8/Materials Resources | -11 -10 -10 -10 -9 -8 ----------- Run | Yrd Mat Min Exi Min Mat Matter Collected 918 | 200 356 133 . . 229 Remotely . | . . . . . . Salvage Created 1037 | . 610 118 . . 309 Parts 75 | . 50 13 . . 12 Haulers Intercepted 1 | . 1 . . . . Recyclers Shooed 1 | . . 1 . . . Parts Field Recycled . | . . . . . . Retrieved Matter . | . . . . . . Parts Self-Destructed . | . . . . . . Prevented . | . . . . . . Parts Restored . | . . . . . . Kills | -11 -10 -10 -10 -9 -8 ------- Run | Yrd Mat Min Exi Min Mat Combat Hostiles Destroyed 30 | . 18 6 . . 6 Guns 30 | . 18 6 . . 6 Classes Destroyed 7 | . 6 . . . 1 Worker 2 | . 1 1 . . . Hauler 1 | . 1 . . . . Operator 1 | . 1 . . . . Watcher 1 | . 1 . . . . Swarmer 15 | . 9 6 . . . Grunt 13 | . 9 . . . 4 Sentry 2 | . . . . . 2 Best Kill Streak 9 | . 9 4 . . 2 Combat Bots Only 9 | . 9 3 . . 2 Max Kills in Single Turn 2 | . 1 2 . . 1 Gunslinging 1 | . . 1 . . . Exploded . | . . . . . . Melee . | . . . . . . Uniques/NPCs Destroyed . | . . . . . . Combat | -11 -10 -10 -10 -9 -8 -------- Run | Yrd Mat Min Exi Min Mat Hostile Shots Fired 178 | . 62 37 . . 79 Missed 57 | . 24 13 . . 20 Hits 121 | . 38 24 . . 59 Projectile 121 | . 38 24 . . 59 Damage Taken 1284 | . 343 208 . . 733 Core 249 | . 82 39 . . 128 Absorbed by Shields . | . . . . . . Ignored by Resistances 194 | . . . . . 194 Core Remaining (%) 75 | 100 . . . 51 . Volleys Fired 119 | . 59 15 . 1 44 Largest 2 | . 2 2 . 2 2 Hottest 120 | . 120 40 . 40 76 Shots Fired 233 | . 118 30 . 3 82 Gun 231 | . 116 30 . 3 82 Cannon . | . . . . . . Launcher . | . . . . . . Special 2 | . 2 . . . . Kinetic 189 | . 116 30 . 3 40 Thermal 44 | . 2 . . . 42 Explosive . | . . . . . . Electromagnetic . | . . . . . . Robot Hit Streak 9 | . 9 5 . 4 5 Robot Miss Streak 5 | . 4 3 . . 5 Penetration Max . | . . . . . . Secondary Targets 3 | . 2 1 . . . Max Gunslinging Chain 1 | . 1 1 . . . Shots Hit Robots 136 | . 66 19 . 2 49 Core Hits 62 | . 37 8 . . 17 Critical Kills 1 | . . 1 . . . Critical Parts Destroyed 2 | . 2 . . . . Critical Strikes 9 | . 2 1 . . 6 Burn 6 | . . . . . 6 Destroy 3 | . 2 1 . . . Melee Attacks . | . . . . . . Impact . | . . . . . . Slashing . | . . . . . . Piercing . | . . . . . . Sneak Attacks . | . . . . . . Combat Hostiles . | . . . . . . Follow-up Attacks . | . . . . . . Damage Inflicted 1504 | . 712 197 . 14 581 Guns 1500 | . 708 197 . 14 581 Cannons . | . . . . . . Explosions . | . . . . . . Melee . | . . . . . . Ramming 4 | . 4 . . . . Kinetic 1150 | . 708 197 . 14 231 Thermal 350 | . . . . . 350 Explosive . | . . . . . . Electromagnetic . | . . . . . . Impact . | . . . . . . Slashing . | . . . . . . Piercing . | . . . . . . Highest Corruption 4 | . . . . . 4 Average Corruption 4 | . . . . . 4 Corruption Purged . | . . . . . . Corruption Blocked . | . . . . . . Effects 1 | . . . . . 1 Message Errors 1 | . . . . . 1 Overload Shots . | . . . . . . Overflow Damage . | . . . . . . Projectiles . | . . . . . . Explosions . | . . . . . . Melee . | . . . . . . Knockbacks . | . . . . . . Impact . | . . . . . . Kinetic . | . . . . . . Secondary . | . . . . . . Self-Inflicted Damage . | . . . . . . Shots . | . . . . . . Rammed . | . . . . . . Targets Rammed 1 | . 1 . . . . Kicked 1 | . 1 . . . . Crushed . | . . . . . . Highest Temperature 321 | . 20 9 . 2 321 Average Temperature 126 | . 9 9 . 2 151 Received Heat Transfer 564 | . 78 9 . . 477 Effects 2 | . . . . . 2 Interference 1 | . . . . . 1 Matter Decay 1 | . . . . . 1 Siege Activations . | . . . . . . Martial Activations . | . . . . . . Shielding Activations . | . . . . . . Robots Disrupted . | . . . . . . Combat Hostiles . | . . . . . . Robots Corrupted . | . . . . . . Combat Hostiles . | . . . . . . Parts Fried . | . . . . . . Impact Corruptions . | . . . . . . Robots Melted . | . . . . . . Combat Hostiles . | . . . . . . Parts Melted 6 | . . . . . 6 Heat Transferred 1332 | . . . . . 1332 Parts Sabotaged . | . . . . . . Parts Stolen . | . . . . . . Parts Stripped . | . . . . . . Power Chain Reactions . | . . . . . . Alert | -11 -10 -10 -10 -9 -8 ------- Run | Yrd Mat Min Exi Min Mat Maximum Alert Level 1 | . 1 . . . . Low Security (%) 99 | 100 98 100 . 100 100 Level 1 . | . 1 . . . . Level 2 . | . . . . . . Level 3 . | . . . . . . Level 4 . | . . . . . . Level 5 . | . . . . . . High Security . | . . . . . . Max Security . | . . . . . . Peak Influence 205 | . 205 122 . . 50 Initial 39 | . . 39 . . . Average 84 | . 122 73 . . 10 Influence Increases 785 | . 481 153 . . 151 Destroy 0b10 Robot/C 600 | . 360 120 . . 120 Destroy 0b10 Robot/NC 25 | . 20 5 . . . Destroy Leader 134 | . 84 20 . . 30 Allied During Kill 8 | . . 8 . . . Disable Machine 15 | . 15 . . . . Destroy Structure 3 | . 2 . . . 1 Influence Decreases 755 | . 380 222 32 . 121 Entered New Map 94 | . . 62 32 . . Time Decay 621 | . 380 160 . . 81 Lost Part 40 | . . . . . 40 Squads Dispatched 7 | . 4 . . . 3 Investigation 3 | . 2 . . . 1 Extermination . | . . . . . . Reinforcement 4 | . 2 . . . 2 Assault . | . . . . . . Garrison . | . . . . . . Intercept . | . . . . . . Searches Triggered . | . . . . . . Construction Impeded . | . . . . . . Haulers Reinforced . | . . . . . . Active Scanning Responses . | . . . . . . Cargo Convoy Interrupts . | . . . . . . Stealth | -11 -10 -10 -10 -9 -8 --------- Run | Yrd Mat Min Exi Min Mat Distress Signals 5 | . 4 . . . 1 Communications Jammed . | . . . . . . Distress Signals . | . . . . . . Times Spotted 43 | . 28 6 . . 9 Peak Tracking Total 7 | . 7 3 . . 3 Tactical Retreats . | . . . . . . Traps | -11 -10 -10 -10 -9 -8 ------- Run | Yrd Mat Min Exi Min Mat Traps Triggered 2 | . 2 . . . . Indirectly . | . . . . . . Trap Hack Attempts . | . . . . . . Triggered . | . . . . . . Disarmed . | . . . . . . Reprogrammed . | . . . . . . Reused . | . . . . . . Traps Extracted . | . . . . . . Installed . | . . . . . . Triggered . | . . . . . . Machines | -11 -10 -10 -10 -9 -8 ---------- Run | Yrd Mat Min Exi Min Mat Machines Disabled 1 | . 1 . . . . Max in Single Turn 1 | . 1 . . . . Machines Repaired . | . . . . . . Machines Dismantled . | . . . . . . Machines Sabotaged . | . . . . . . Overloaded Fab Kills . | . . . . . . Hacking | -11 -10 -10 -10 -9 -8 --------- Run | Yrd Mat Min Exi Min Mat Machines Accessed 3 | . . . 2 . 1 Terminals 1 | . . . . . 1 Fabricators . | . . . . . . Repair Stations . | . . . . . . Recycling Units . | . . . . . . Scanalyzers . | . . . . . . Garrison Access . | . . . . . . Total Hacks 4 | . . . 2 . 2 Successful 2 | . . . 2 . . Failed 2 | . . . . . 2 Catastrophic . | . . . . . . Database Lockouts . | . . . . . . Manual 5 | . 3 . 1 . 1 Terminals 2 | . . . . . 2 Fabricators . | . . . . . . Repair Stations . | . . . . . . Recycling Units . | . . . . . . Scanalyzers . | . . . . . . Garrison Access . | . . . . . . Terminal Hacks 2 | . . . 2 . . Record 1 | . . . 1 . . Proto ID Catalog 1 | . . . 1 . . Fabricator Hacks . | . . . . . . Repair Station Hacks . | . . . . . . Recycling Unit Hacks . | . . . . . . Scanalyzer . | . . . . . . Garrison Access Hacks . | . . . . . . Unauthorized Hacks . | . . . . . . Terminals . | . . . . . . Fabricators . | . . . . . . Repair Stations . | . . . . . . Recycling Units . | . . . . . . Scanalyzers . | . . . . . . Garrison Access . | . . . . . . Data Cores Recovered . | . . . . . . Used . | . . . . . . Hacking Detections 1 | . . . . . 1 Full Trace Events 1 | . . . . . 1 Feedback Events . | . . . . . . Feedback Blocked . | . . . . . . Robot Schematics Acquired . | . . . . . . Robots Built . | . . . . . . Authchips . | . . . . . . Time . | . . . . . . Total Robot Build Rating . | . . . . . . Part Schematics Acquired . | . . . . . . Parts Built . | . . . . . . Authchips . | . . . . . . Time . | . . . . . . Total Part Build Rating . | . . . . . . Part Studies Acquired . | . . . . . . Parts Repaired . | . . . . . . Time . | . . . . . . Parts Recycled . | . . . . . . Recycled Matter . | . . . . . . Retrieved Matter . | . . . . . . Retrieved Components . | . . . . . . Parts Scanalyzed . | . . . . . . Part Schematics Acquired . | . . . . . . Parts Damaged . | . . . . . . Bothacking | -11 -10 -10 -10 -9 -8 ------------ Run | Yrd Mat Min Exi Min Mat Used RIF Installer . | . . . . . . Robots Hacked . | . . . . . . Non-combat . | . . . . . . Combat . | . . . . . . Robot Hacks Applied . | . . . . . . Relay Couplers Released . | . . . . . . Fabnet Peak Effective % . | . . . . . . Robots Rewired . | . . . . . . Allies Hacked . | . . . . . . Hacks Repelled . | . . . . . . Allies | -11 -10 -10 -10 -9 -8 -------- Run | Yrd Mat Min Exi Min Mat Total Allies 2 | . . 2 . . . Largest Group 2 | . . 2 1 . . Highest-Rated Group 41 | . . 41 31 . . Highest-Rated Ally 31 | . . 31 31 . . Total Orders . | . . . . . . Ally Attacks 4 | . . 4 . . . Total Damage 21 | . . 21 . . . Kills . | . . . . . . Allies Corrupted . | . . . . . . Allies Melted . | . . . . . . X0-1V1 Amusement Gains 22 | . 12 . . . 10 Average Entertainment 5 | . 12 7 . 3 2 Good Acts 4 | . . 2 . . 2 Bad Acts 5 | . . 2 . 2 1 Intel | -11 -10 -10 -10 -9 -8 ------- Run | Yrd Mat Min Exi Min Mat Active Infowar (turns) 1011 | . 1011 . . . . Structural 1011 | . 1011 . . . . Robot Analysis Total . | . . . . . . Derelict Logs Recovered . | . . . . . . Drone Launches . | . . . . . . Drone Recoveries . | . . . . . . Exploration | -11 -10 -10 -10 -9 -8 ------------- Run | Yrd Mat Min Exi Min Mat Turns Passed 2464 | 3 1089 334 549 124 365 Spaces Moved 1696 | 3 725 233 451 102 182 Core . | . . . . . . Treads . | . . . . . . Legs 1696 | 3 725 233 451 102 182 Wheels . | . . . . . . Hover . | . . . . . . Flight . | . . . . . . Fastest Speed 120 | 120 120 120 120 120 120 Average Speed 120 | 120 120 120 120 120 120 Slowest Speed 120 | 120 120 120 120 120 120 Overloaded Moves . | . . . . . . Propulsion Burnouts . | . . . . . . Robots Hopped . | . . . . . . Potential Cave-ins . | . . . . . . Cave-ins Triggered . | . . . . . . Exploration Rate (%) 42 | 2 92 54 61 29 19 Regions Visited 5 Branch Regions 3 Pre-discovered Areas 1 | . . . 1 . . Known Exits Taken . | . . . . . . Unknown Exits Taken 5 | 1 1 1 1 1 . Scrap Searched 2 | . . 2 . . . Spaces Dug 2 | . 2 . . . . Terrain Destroyed 2 | . 2 . . . . Melee . | . . . . . . Projectile 2 | . 2 . . . . AOE . | . . . . . . Terrain Rammed . | . . . . . . Walls Destroyed . | . . . . . . Machines Disabled . | . . . . . . Actions | -11 -10 -10 -10 -9 -8 --------- Run | Yrd Mat Min Exi Min Mat Total 1925 | 2 843 263 460 102 255 Wait 35 | . 23 8 . . 4 Move 1691 | 2 724 232 450 101 182 Hop . | . . . . . . Pick Up 30 | . 10 . 5 . 15 Fast Attach 6 | . 2 . 1 . 3 Attach 4 | . . . . . 4 Detach 2 | . . . . . 2 Swap 13 | . 9 4 . . . Drop 24 | . 15 4 4 . 1 Fire 119 | . 59 15 . 1 44 Melee . | . . . . . . Ram . | . . . . . . Kick 1 | . 1 . . . . Crush . | . . . . . . Escape Stasis . | . . . . . . Rewire . | . . . . . . Trap . | . . . . . . Miscellaneous . | . . . . . . Route ------- -11/Scrapyard -10/Materials (discovered 5 exits: [*Mat x2] / [*Min x2] / [*Sub]) -10/Mines (discovered 2 exits: [*Mat] / *Exi) -10/Exiles -9/Mines -8/Materials History --------- Turn | Location | Event 1 | -11/Scrapyard | Discovered new exit (range 2) 4 | -11/Scrapyard | Entered Materials 232 | -10/Materials | Destroyed 9 combat bots 232 | -10/Materials | Discovered new exit (range 13) 303 | -10/Materials | Build established: Mutant 343 | -10/Materials | Discovered new exit (range 15) 556 | -10/Materials | Discovered new exit (range 13) 690 | -10/Materials | Discovered new exit (range 16) 1025 | -10/Materials | Discovered new exit (range 8) 1034 | -10/Materials | Prayed at D.C.S.S. Altar Unit 1093 | -10/Materials | Entered Mines 1167 | -10/Mines | Discovered new exit (range 7) 1192 | -10/Mines | Build established: Scavenger-Mutant 1421 | -10/Mines | Deemed a non-threat by the Exiles lab entrance 1423 | -10/Mines | Discovered new exit (range 5) 1427 | -10/Mines | Entered Exiles 1427 | -10/Exiles | Accompanied by 1 ally 1443 | -10/Exiles | Discovered new exit (range 15) 1457 | -10/Exiles | Led the pair of lost Derelicts to a safe place 1462 | -10/Exiles | Met 8R-AWN 1479 | -10/Exiles | Met EX-HEX 1517 | -10/Exiles | Met EX-BIN 1534 | -10/Exiles | Aligned with FarCom system 1535 | -10/Exiles | Given EX-Vault access code 1569 | -10/Exiles | Opened EX-Vault 1583 | -10/Exiles | Found Lightpack 2.0 1608 | -10/Exiles | Warned to stay clear of 0b10 Research branches 1642 | -10/Exiles | Met EX-DEC 1670 | -10/Exiles | Learned location of Zion (-7) 1976 | -10/Exiles | Left Exiles lab with Lightpack 2.0 1976 | -10/Exiles | Entered Mines 2083 | -9/Mines | Discovered new exit (range 8) 2100 | -9/Mines | Entered Materials 2100 | -8/Materials | Evolved 4 slots: Propulsion x2, Utility x2 2465 | -8/Materials | Build established: Hauler-Mutant 2465 | -8/Materials | Self-destructed Last Messages --------------- 02447_ G-47 Trooper heat short circuits Particle Gun. 02447_ G-47 Trooper overheating. 02447_ Broken Aluminum Leg melted. 02447_ Aluminum Leg melted. 02447_ Particle Gun melted. 02447_ G-47 Trooper destroyed. 02449_ LQDWGJPBLU93Y , IKM:VEHYLFP4NDZR6P 02449_ Destroyed Broken Particle Gun. 02451_ G-47 Trooper suffers critical hit (Burn). 02451_ G-47 Trooper destroyed. 02453_ Acquired 55 matter. X0-1V1's Piety Tracker suddenly appears amidst shimmering waves of color. 02456_ K-01 Serf collects debris. 02456_ Acquired 13 matter. 02458_ Acquired 51 matter. 02459_ K-01 Serf cleans the Terminal. 02462_ K-01 Serf collects debris. 02465_ R-06 Scavenger collects Lgt. Ion Engine. Map ----- +----------------------------------------------------+ | | | | | | | | | ?????????????????????????????????????????????????? | | ?????????????????????????????????????????????????? | | ?????????????????????????????????????????????????? | | ?????????????????????????????????????????????????? | | ?????????????????????????????????????????????????? | | ?????????????????????????????????????????????????? | | ?????????????????????????????????????????????????? | | ?????????????????????????????????????????????????? | | ?????????????????????????????????????????????????? | | ?????????????????????????????????????????????????? | | ?????????????????????????????????????????????????? | | ??????????########???????????????????????????????? | | ??????????# #???????????????????????????????? | | ??????????# """ !#???????????????????????????????? | | ??????????# """ #?????????????????#####?????????? | | ??????????# """ #?????????????????# #?????????? | | ??????????# ??????????????????# ! #?????????? | | ????####### ???????###+######### #?????????? | | ????# ###+########## #?????????? | | ##### T !| ! u #?????????? | | "" " #?????????? | | #### % r % @kT g ###???????? | | #??# ###+##########a " """ ""#???????? | | #??####### #??## """ T"#???????? | | #????????# ! #???# """ ""#???????# | | ########## ! #???# o ####### | | + ! #???# g | | ##########+#####+###???# " | | ######?? ?g?# #?????# ] | | ## !!## ""???# #????## ####+####+######## | | ! !!## """??# ###### ## # #??? | | !! !!##? """??# ## # #????? | | !!#? g ?+ g " + # #????? | | ]]#? [= ?# ## # #????? | | ]# [! ?# #### ## # "" "" #????? | | !###### =???# ######+#### # ""S"" #????? | | !##????# ?????+ # #= # """" #????? | | ##?????#+##?????### # ##### #????? | | ??????????????????# # """ """ #???###########????? | | ??????????????????# # """ """ #??????????????????? | | ??????????????????# # """ """ #??????????????????? | | ??????????????????? # #??????????????????? | | ??????????????????? # #??????????????????? | | ??????????????????? # #??????????????????? | | ??????????????????? ###########??????????????????? | | ??????????????????? ?????????????????????????????? | +----------------------------------------------------+ Best States ------------- Heat Dissipation 31 Energy Generation 10 Energy Capacity 250 Matter Stores 391 Matter Capacity 700 Sight Range 16 Terrain Scan Density 10 Resistance: TH 39 Evasion (%) 55 Item Schematics ----------------- None Robot Schematics ------------------ None Fabricated ------------ Nothing Repaired ---------- Nothing Studied --------- None Alien Tech Used ----------------- None Achievements -------------- Chaos Is Inevitable Challenges ------------ None Game ------ Seed TrapSpreadGun Manual? 0 Play Time 00:21:06 Cumulative 24.9 hours Start 2026.09.02 @ 14:58:17 End 2026.09.02 @ 22:28:41 Sessions 3 Manual Loads 0 Difficulty Rogue Special Mode None Game No. 31 Rogue 31 Adventurer 0 Explorer 0 Win Type - Total 0 Types 0/0/0/0/0/0/0/0/0/0 Lore% 14 Gallery% 20 Achievement% 18 Wizard Run 0 Options --------- Layout 1 ASCII 0 Keyboard 1 Movement Arrows Keybinds 1 Fullscreen 2 Font 36/Smallcaps Map View 50x40 Zoom Use 0% Tactical HUD 1 Map Filters NONE Filters NONE Steam 1 RUN: 24d23a17-b1e3-4425-9a2e-daa5e1c3a590